Cogmind - Beta 12 @@@ ROGUE MODE // 2023.12.17 @ 10:34:33 Player: Leeman Result: Destroyed by ST-NK7(g) with Beamcaster Performance ------------- Evolutions (3) 1500 Regions Visited (8) 1600 Robots Destroyed (82) 410 Value Destroyed (2376) 2376 Prototype IDs (4) 80 Alien Tech Used (0) 0 Bonus (307) 307 TOTAL SCORE: 6273 Bonus ------- Follower Combat Kills 7 Aligned with FarCom 300 Cogmind --------- Core Integrity 0/700 Matter 290/300 Energy 95/100 System Corruption 7% Temperature Cool (9) Movement Core (400) Ox7 Location -6/Zion Parts ------- > --- POWER (2) -------- (None) > --- PROPULSION (4) --- (None) > --- UTILITY (4) ------ Large Storage Unit > --- WEAPON (3) ------- Makeshift Axe > --- INVENTORY (15) --- Light Nuclear Core Light Treads Spiked Medium Treads AWS/Thermal Peak State ------------ > --- POWER ------------ Ion Engine Improved Ion Engine > --- PROPULSION ------- Light Treads Light Treads Light Treads Armored Treads > --- UTILITY ---------- Improved Heat Sink Large Storage Unit Improved Light Armor Plating Shield Generator > --- WEAPON ----------- AWS/Thermal Slug Cannon > --- INVENTORY -------- Light Nuclear Core Light Nuclear Core Reinforced Deuterium Engine Light Treads Light Treads Light Treads Heat Sink Shield Generator Field Laser Heavy Particle Gun Particle Cannon Precision Assault Rifle Advanced EMP Blaster [Rating: 41] Favorites ----------- Power Ion Engine Engine Ion Engine Power Core Light Nuclear Core Propulsion Light Treads Treads Light Treads Leg Makeshift Leg Utility Large Storage Unit Device Heat Sink Storage Large Storage Unit Processor Signal Interpreter Protection Improved Light Armor Plating Weapon AWS/Thermal Energy Gun AWS/Thermal Energy Cannon Particle Cannon Ballistic Gun Light Assault Rifle Ballistic Cannon Slug Cannon Launcher Advanced EMP Blaster Slashing Weapon Makeshift Axe Build | -11 -10 -10 -10 -9 -8 -7 -7 -6 ------- Run | Jun Mat Min Exi Min Mat Fac Low Zio Slots Evolved 6 | . . . . . 4 2 . . Power 1 | . . . . . 1 . . . Propulsion 2 | . . . . . 1 1 . . Utility 2 | . . . . . 1 1 . . Weapon 1 | . . . . . 1 . . . Parts Attached 51 | 6 6 5 3 . 8 8 4 11 Power 7 | 1 1 1 1 . 1 1 . 1 Engine 6 | 1 1 1 1 . 1 1 . . Core 1 | . . . . . . . . 1 Reactor . | . . . . . . . . . Propulsion 14 | 2 1 2 . . 2 2 3 2 Treads 13 | 2 1 2 . . 2 2 3 1 Leg 1 | . . . . . . . . 1 Wheel . | . . . . . . . . . Hover . | . . . . . . . . . Flight . | . . . . . . . . . Utility 14 | 1 3 1 1 . 3 2 . 3 Device 7 | . 1 . 1 . 2 2 . 1 Storage 4 | 1 2 . . . . . . 1 Processor 1 | . . 1 . . . . . . Hackware . | . . . . . . . . . Protection 2 | . . . . . 1 . . 1 Artifact . | . . . . . . . . . Weapon 16 | 2 1 1 1 . 2 3 1 5 Energy Gun 6 | 1 1 . 1 . . 2 . 1 Energy Cannon 3 | . . 1 . . 1 . . 1 Ballistic Gun 3 | 1 . . . . . 1 . 1 Ballistic Cannon 2 | . . . . . 1 . . 1 Launcher 1 | . . . . . . . 1 . Special Weapon . | . . . . . . . . . Impact Weapon . | . . . . . . . . . Slashing Weapon 1 | . . . . . . . . 1 Piercing Weapon . | . . . . . . . . . Special Melee Weapon . | . . . . . . . . . Unidentified Prototypes 4 | . . . 1 . . 2 1 . Parts Lost 34 | . 3 4 . . 1 5 1 20 Power 6 | . 1 1 . . . 1 . 3 Propulsion 11 | . 1 2 . . . 3 1 4 Utility 7 | . . . . . . 1 . 6 Weapon 10 | . 1 1 . . 1 . . 7 Highest Loss Streak 8 | . 1 2 . . 1 4 1 8 To Critical Strikes 1 | . . . . . . . . 1 Average Slot Usage (%) 92 | . 95 99 91 85 89 91 98 80 Engine 14 | . 13 13 13 14 17 14 15 10 Treads 27 | . 28 27 28 28 27 29 28 22 Device 13 | . 13 9 14 14 16 15 15 9 Storage 10 | . 14 14 14 14 9 7 7 8 Protection 2 | . . . . . 1 7 7 4 Energy Gun 8 | . 10 2 7 14 9 7 7 3 Energy Cannon 2 | . . 11 6 . 4 . . 2 Ballistic Gun 6 | . 14 14 6 . . . 7 5 Ballistic Cannon 2 | . . . . . 4 7 4 . Naked Turns . | . . . . . . . . . Heaviest Build 60 | 11 27 31 34 34 51 60 60 59 Greatest Support 80 | 40 40 40 40 40 60 80 80 80 Greatest Overweight (x) 17 | . . . . . 1 1 1 17 Average Overweight (x) . | . . . . . . . . . Largest Inventory Capacity 15 | 8 15 15 15 15 15 15 15 15 Average Capacity 14 | 7 13 15 15 15 15 15 15 15 Most Carried 15 | 2 10 11 8 10 15 14 11 8 Average Carried 8 | 1 4 7 6 9 11 13 8 6 Final Capacity 15 | 8 15 15 15 15 15 15 15 15 Final Carried 15 | 2 10 6 8 10 15 11 8 5 Class Distribution -------------------- 45% | Mutant 23% | Scavenger-Tank 17% | Scavenger-Skirmisher 12% | Scavenger-Mutant Dominant Class ---------------- Mutant | -10/Materials Mutant | -10/Mines Mutant | -10/Exiles Mutant | -9/Mines Scavenger-Skirmisher | -8/Materials Scavenger-Tank | -7/Factory Scavenger-Mutant | -7/Lower Caves Scavenger-Tank | -6/Zion Resources | -11 -10 -10 -10 -9 -8 -7 -7 -6 ----------- Run | Jun Mat Min Exi Min Mat Fac Low Zio Matter Collected 1448 | 167 195 55 . 16 254 217 244 300 Remotely . | . . . . . . . . . Salvage Created 2890 | . 499 403 . . 961 552 46 429 Parts 181 | . 37 18 . . 64 30 1 31 Haulers Intercepted 4 | . 2 . . . 1 1 . . Recyclers Shooed 1 | . . . . . . 1 . . Parts Field Recycled . | . . . . . . . . . Retrieved Matter . | . . . . . . . . . Parts Self-Destructed 1 | . . . . . . . 1 . Prevented . | . . . . . . . . . Kills | -11 -10 -10 -10 -9 -8 -7 -7 -6 ------- Run | Jun Mat Min Exi Min Mat Fac Low Zio Combat Hostiles Destroyed 54 | . 11 6 . . 23 11 1 2 Guns 35 | . 9 1 . . 19 5 1 . Cannons 14 | . . 5 . . 3 6 . . AOE 3 | . 2 . . . . . . 1 Classes Destroyed 17 | . 5 2 . . 4 3 . 3 Worker 5 | . . . . . . 5 . . Builder 1 | . . . . . . 1 . . Hauler 4 | . 2 . . . 1 1 . . Recycler 1 | . . 1 . . . . . . Operator 1 | . 1 . . . . . . . Watcher 6 | . 3 . . . 3 . . . Swarmer 15 | . 6 . . . 9 . . . Grunt 20 | . 5 4 . . 3 8 . . Duelist 1 | . . . . . 1 . . . Sentry 9 | . . 2 . . 6 1 . . Specialist 2 | . . . . . 2 . . . Hunter 1 | . . . . . 1 . . . Programmer 3 | . . . . . . 2 1 . Heavy 1 | . . . . . 1 . . . Zionite 10 | . . . . . . . . 10 Tinkerer 1 | . . . . . . . . 1 Marauder 2 | . . . . . . . . 2 Best Kill Streak 7 | . 3 3 . . 5 5 1 7 Combat Bots Only 4 | . 3 2 . . 4 3 1 2 Max Kills in Single Turn 4 | . 1 1 . . 1 4 1 1 Gunslinging . | . . . . . . . . . Exploded 1 | . 1 . . . . . . 1 Melee . | . . . . . . . . . Uniques/NPCs Destroyed . | . . . . . . . . . Combat | -11 -10 -10 -10 -9 -8 -7 -7 -6 -------- Run | Jun Mat Min Exi Min Mat Fac Low Zio Damage Taken 4890 | . 466 523 . . 490 693 405 2313 Core 934 | . 27 116 . . 88 44 45 614 Absorbed by Shields 433 | . . . . . . 265 143 25 Core Remaining (%) 75 | 100 . . . 42 84 . . . Volleys Fired 209 | . 47 18 . . 45 54 8 37 Largest 3 | . 2 2 . . 1 3 1 3 Hottest 139 | . 60 88 . . 68 139 63 132 Shots Fired 423 | . 93 36 . . 131 89 11 63 Gun 274 | . 93 18 . . 86 35 11 31 Cannon 144 | . . 18 . . 45 54 . 27 Launcher 5 | . . . . . . . . 5 Special . | . . . . . . . . . Kinetic 177 | . 47 18 . . 25 59 1 27 Thermal 195 | . . 18 . . 106 30 10 31 Explosive . | . . . . . . . . . Electromagnetic 51 | . 46 . . . . . . 5 Robot Hit Streak 16 | . 7 8 . . 16 13 3 8 Robot Miss Streak 6 | . 2 2 . . 4 6 2 2 Penetration Max . | . . . . . . . . . Secondary Targets . | . . . . . . . . . Autonomous 111 | . . . . . 86 25 . . Shots Hit Robots 288 | . 58 25 . . 99 55 5 46 Core Hits 112 | . 24 10 . . 32 24 2 20 Critical Kills 2 | . . . . . . 1 . 1 Critical Parts Destroyed 6 | . . . . . 3 3 . . Critical Strikes 8 | . . . . . 3 4 . 1 Meltdown 1 | . . . . . . . . 1 Destroy 7 | . . . . . 3 4 . . Melee Attacks 2 | . . . . . . . . 2 Impact . | . . . . . . . . . Slashing 2 | . . . . . . . . 2 Piercing . | . . . . . . . . . Sneak Attacks . | . . . . . . . . . Combat Hostiles . | . . . . . . . . . Follow-up Attacks . | . . . . . . . . . Damage Inflicted 7299 | . 916 361 . . 2809 2136 106 971 Guns 4442 | . 651 95 . . 2237 849 106 504 Cannons 2111 | . . 266 . . 572 930 . 343 Explosions 745 | . 265 . . . . 357 . 123 Melee . | . . . . . . . . . Ramming 1 | . . . . . . . . 1 Kinetic 2138 | . 202 95 . . 387 1017 . 437 Thermal 4249 | . 265 266 . . 2422 762 106 428 Explosive 357 | . . . . . . 357 . . Electromagnetic 554 | . 449 . . . . . . 105 Impact . | . . . . . . . . . Slashing . | . . . . . . . . . Piercing . | . . . . . . . . . Highest Corruption 7 | . . . . . . 5 5 7 Average Corruption 3 | . . . . . . 2 5 5 Corruption Purged . | . . . . . . . . . Corruption Blocked . | . . . . . . . . . Effects 71 | . . . . . . 33 26 12 Message Errors 14 | . . . . . . 6 4 4 Matter Fused 25 | . . . . . . 14 9 2 Heat Flow Errors 7 | . . . . . . 3 3 1 Energy Discharges 5 | . . . . . . 2 1 2 Parts Fused 3 | . . . . . . 1 1 1 Data Loss (minor) 6 | . . . . . . 3 3 . Data Loss (major) 2 | . . . . . . 1 1 . Misfires 7 | . . . . . . 2 3 2 Alerts 1 | . . . . . . . 1 . Weapon Failures 1 | . . . . . . 1 . . Overload Shots . | . . . . . . . . . Overflow Damage 72 | . 35 . . . 15 12 . 10 Projectiles 37 | . . . . . 15 12 . 10 Explosions 35 | . 35 . . . . . . . Melee . | . . . . . . . . . Knockbacks 3 | . . . . . 1 2 . . Impact . | . . . . . . . . . Kinetic 3 | . . . . . 1 2 . . Secondary . | . . . . . . . . . Self-Inflicted Damage 108 | . 83 . . . . . . 25 Shots 3 | . 2 . . . . . . 1 Rammed 1 | . . . . . . . . 1 Targets Rammed 1 | . . . . . . . . 1 Kicked . | . . . . . . . . . Crushed . | . . . . . . . . . Highest Temperature 378 | . 40 138 . . 8 204 214 378 Average Temperature 71 | . 12 50 . . 8 51 79 100 Received Heat Transfer 819 | . 126 255 . . 81 150 27 180 Siege Activations . | . . . . . . . . . Robots Corrupted . | . . . . . . . . . Combat Hostiles . | . . . . . . . . . Parts Fried 1 | . 1 . . . . . . . Impact Corruptions . | . . . . . . . . . Robots Melted 2 | . . . . . 1 . . 1 Combat Hostiles 2 | . . . . . 1 . . 1 Parts Melted 19 | . . 1 . . 12 . 4 2 Heat Transferred 5861 | . 150 481 . . 3182 1036 185 827 Parts Sabotaged . | . . . . . . . . . Parts Stolen . | . . . . . . . . . Parts Stripped . | . . . . . . . . . Power Chain Reactions 5 | . 4 . . . . . . 1 Missiles Intercepted . | . . . . . . . . . Alert | -11 -10 -10 -10 -9 -8 -7 -7 -6 ------- Run | Jun Mat Min Exi Min Mat Fac Low Zio Peak Influence 263 | . 214 130 . . 263 193 . . Initial 40 | . . 40 . . . 28 . . Average 73 | . 90 45 . . 105 69 . . Maximum Alert Level 1 | . 1 . . . 1 . . . Low Security (%) 98 | 100 99 100 . 100 92 100 . . Level 1 1 | . . . . . 7 . . . Level 2 . | . . . . . . . . . Level 3 . | . . . . . . . . . Level 4 . | . . . . . . . . . Level 5 . | . . . . . . . . . High Security . | . . . . . . . . . Max Security . | . . . . . . . . . Squads Dispatched 9 | . 2 . . . 3 4 . . Investigation . | . . . . . . . . . Extermination 2 | . . . . . . 2 . . Reinforcement 6 | . 2 . . . 3 1 . . Assault . | . . . . . . . . . Garrison 1 | . . . . . . 1 . . Intercept . | . . . . . . . . . Searches Triggered . | . . . . . . . . . Construction Impeded 1 | . . . . . . 1 . . Haulers Reinforced . | . . . . . . . . . Active Scanning Responses . | . . . . . . . . . Cargo Convoy Interrupts . | . . . . . . . . . Stealth | -11 -10 -10 -10 -9 -8 -7 -7 -6 --------- Run | Jun Mat Min Exi Min Mat Fac Low Zio Distress Signals 3 | . . . . . 3 . . . Communications Jammed . | . . . . . . . . . Distress Signals . | . . . . . . . . . Times Spotted 100 | . 20 6 . . 30 17 2 25 Peak Tracking Total 6 | . 3 2 . . 4 3 1 6 Tactical Retreats 12 | . 2 . . . 2 . 1 7 Traps | -11 -10 -10 -10 -9 -8 -7 -7 -6 ------- Run | Jun Mat Min Exi Min Mat Fac Low Zio Traps Triggered 3 | . . . . . 1 2 . . Indirectly . | . . . . . . . . . Trap Hack Attempts . | . . . . . . . . . Triggered . | . . . . . . . . . Disarmed . | . . . . . . . . . Reprogrammed . | . . . . . . . . . Reused . | . . . . . . . . . Traps Extracted . | . . . . . . . . . Installed . | . . . . . . . . . Triggered . | . . . . . . . . . Machines | -11 -10 -10 -10 -9 -8 -7 -7 -6 ---------- Run | Jun Mat Min Exi Min Mat Fac Low Zio Machines Disabled 7 | . 2 . . . 4 1 . . Max in Single Turn 1 | . 1 . . . 1 1 . . Machines Repaired . | . . . . . . . . . Machines Sabotaged . | . . . . . . . . . Overloaded Fab Kills . | . . . . . . . . . Hacking | -11 -10 -10 -10 -9 -8 -7 -7 -6 --------- Run | Jun Mat Min Exi Min Mat Fac Low Zio Machines Accessed 10 | . 6 . . . 4 . . . Terminals 7 | . 4 . . . 3 . . . Fabricators . | . . . . . . . . . Repair Stations . | . . . . . . . . . Recycling Units 3 | . 2 . . . 1 . . . Scanalyzers . | . . . . . . . . . Garrison Access . | . . . . . . . . . Total Hacks 18 | . 12 . . . 6 . . . Successful 10 | . 6 . . . 4 . . . Failed 8 | . 6 . . . 2 . . . Catastrophic 2 | . . . . . 2 . . . Database Lockouts . | . . . . . . . . . Manual 2 | . . . 1 . . 1 . . Terminals 14 | . 9 . . . 5 . . . Fabricators . | . . . . . . . . . Repair Stations . | . . . . . . . . . Recycling Units 4 | . 3 . . . 1 . . . Scanalyzers . | . . . . . . . . . Garrison Access . | . . . . . . . . . Terminal Hacks 7 | . 4 . . . 3 . . . Alert Level 1 | . . . . . 1 . . . Unreport Threat 1 | . . . . . 1 . . . Locate Traps 3 | . 2 . . . 1 . . . Maintenance Status 1 | . 1 . . . . . . . Investigation Status 1 | . 1 . . . . . . . Fabricator Hacks . | . . . . . . . . . Repair Station Hacks . | . . . . . . . . . Recycling Unit Hacks 3 | . 2 . . . 1 . . . Retrieve Components 3 | . 2 . . . 1 . . . Scanalyzer . | . . . . . . . . . Garrison Access Hacks . | . . . . . . . . . Unauthorized Hacks . | . . . . . . . . . Terminals . | . . . . . . . . . Fabricators . | . . . . . . . . . Repair Stations . | . . . . . . . . . Recycling Units . | . . . . . . . . . Scanalyzers . | . . . . . . . . . Garrison Access . | . . . . . . . . . Data Cores Recovered . | . . . . . . . . . Used . | . . . . . . . . . Hacking Detections 6 | . 4 . . . 2 . . . Full Trace Events . | . . . . . . . . . Feedback Events . | . . . . . . . . . Feedback Blocked . | . . . . . . . . . Robot Schematics Acquired . | . . . . . . . . . Robots Built . | . . . . . . . . . Authchips . | . . . . . . . . . Time . | . . . . . . . . . Total Robot Build Rating . | . . . . . . . . . Part Schematics Acquired . | . . . . . . . . . Parts Built . | . . . . . . . . . Authchips . | . . . . . . . . . Time . | . . . . . . . . . Total Part Build Rating . | . . . . . . . . . Parts Repaired . | . . . . . . . . . Time . | . . . . . . . . . Parts Recycled . | . . . . . . . . . Recycled Matter . | . . . . . . . . . Retrieved Matter . | . . . . . . . . . Retrieved Components 25 | . 16 . . . 9 . . . Parts Scanalyzed . | . . . . . . . . . Part Schematics Acquired . | . . . . . . . . . Parts Damaged . | . . . . . . . . . Bothacking | -11 -10 -10 -10 -9 -8 -7 -7 -6 ------------ Run | Jun Mat Min Exi Min Mat Fac Low Zio Used RIF Installer . | . . . . . . . . . Robots Hacked . | . . . . . . . . . Non-combat . | . . . . . . . . . Combat . | . . . . . . . . . Robot Hacks Applied . | . . . . . . . . . Relay Couplers Released . | . . . . . . . . . Fabnet Peak Effective % . | . . . . . . . . . Robots Rewired . | . . . . . . . . . Allies Hacked . | . . . . . . . . . Hacks Repelled . | . . . . . . . . . Allies | -11 -10 -10 -10 -9 -8 -7 -7 -6 -------- Run | Jun Mat Min Exi Min Mat Fac Low Zio Total Allies 2 | . . . . 2 . . . . Largest Group 2 | . . . . 2 2 . . . Highest-Rated Group 47 | . . . . 47 47 . . . Highest-Rated Ally 31 | . . . . 31 31 . . . Total Orders . | . . . . . . . . . Ally Attacks 7 | . . . . . 7 . . . Total Damage 126 | . . . . . 126 . . . Kills 1 | . . . . . 1 . . . Allies Corrupted . | . . . . . . . . . Allies Melted . | . . . . . . . . . Intel | -11 -10 -10 -10 -9 -8 -7 -7 -6 ------- Run | Jun Mat Min Exi Min Mat Fac Low Zio Robot Analysis Total . | . . . . . . . . . Derelict Logs Recovered 3 | . . 2 . . . . 1 . Drone Launches . | . . . . . . . . . Drone Recoveries . | . . . . . . . . . Exploration | -11 -10 -10 -10 -9 -8 -7 -7 -6 ------------- Run | Jun Mat Min Exi Min Mat Fac Low Zio Turns Passed 9669 | 64 2159 1002 419 665 1711 1877 1200 572 Spaces Moved 4576 | 35 1007 558 258 365 658 759 700 236 Core 5 | 2 . . . . . . . 3 Treads 4569 | 33 1007 558 258 365 658 759 700 231 Legs 2 | . . . . . . . . 2 Wheels . | . . . . . . . . . Hover . | . . . . . . . . . Flight . | . . . . . . . . . Fastest Speed 50 | 50 160 160 160 160 160 162 162 160 Average Speed 162 | 153 160 160 160 160 160 162 165 180 Slowest Speed 900 | 160 160 160 160 160 240 245 245 900 Overloaded Moves . | . . . . . . . . . Propulsion Burnouts . | . . . . . . . . . Robots Hopped . | . . . . . . . . . Cave-ins Triggered . | . . . . . . . . . Exploration Rate (%) 56 | 4 98 85 66 94 61 14 72 14 Regions Visited 8 Branch Regions 5 Pre-discovered Areas 1 | . . 1 . . . . . . Known Exits Taken 1 | . . 1 . . . . . . Unknown Exits Taken 7 | 1 1 . 1 1 1 1 1 . Scrap Searched 4 | . . 1 . 1 . . 2 . Spaces Dug . | . . . . . . . . . Terrain Destroyed 90 | . 50 . . . 15 24 . 1 Melee . | . . . . . . . . . Projectile 31 | . . . . . 15 15 . 1 AOE 59 | . 50 . . . . 9 . . Terrain Rammed . | . . . . . . . . . Walls Destroyed . | . . . . . . . . . Machines Disabled . | . . . . . . . . . Actions | -11 -10 -10 -10 -9 -8 -7 -7 -6 --------- Run | Jun Mat Min Exi Min Mat Fac Low Zio Total 6531 | 42 1471 636 266 446 1273 1344 733 320 Wait 1644 | . 399 48 . 80 542 522 22 31 Move 4568 | 34 1006 557 257 364 657 758 699 236 Hop . | . . . . . . . . . Pick Up 37 | 2 11 4 2 2 15 1 . . Fast Attach 16 | 6 1 . 1 . 2 . . 6 Attach 29 | . 3 4 2 . 5 7 3 5 Detach 5 | . . . 2 . . 1 . 2 Swap 6 | . 2 1 . . 1 1 1 . Drop 14 | . 2 4 2 . 6 . . . Fire 209 | . 47 18 . . 45 54 8 37 Melee 2 | . . . . . . . . 2 Ram . | . . . . . . . . . Kick . | . . . . . . . . . Crush 1 | . . . . . . . . 1 Escape Stasis . | . . . . . . . . . Rewire . | . . . . . . . . . Trap . | . . . . . . . . . Miscellaneous . | . . . . . . . . . Route ------- -11/Junkyard -10/Materials (discovered 4 exits: *Mat x3 / [*Min]) -10/Mines (discovered 3 exits: *Mat x2 / *Exi) -10/Exiles -9/Mines (discovered 2 exits: *Mat x2) -8/Materials -7/Factory -7/Lower Caves (discovered 2 exits: [*Low] / [*Zio]) -6/Zion (discovered 1 exit: [*Pro]) History --------- Turn | Location | Event 7 | -11/Junkyard | Discovered new exit (range 14) 65 | -11/Junkyard | Entered Materials 73 | -10/Materials | Discovered new exit (range 16) 248 | -10/Materials | Discovered new exit (range 14) 306 | -10/Materials | Build established: Mutant 1013 | -10/Materials | Discovered new exit (range 15) 1709 | -10/Materials | Discovered new exit (range 5) 2224 | -10/Materials | Entered Mines 2225 | -10/Mines | Learned location of Storage (-7) 2662 | -10/Mines | Discovered new exit (range 5) 2675 | -10/Mines | Core integrity fell below 50% 2771 | -10/Mines | Learned Materials terminal intel 2776 | -10/Mines | Learned Materials interactive machine intel 2857 | -10/Mines | Discovered new exit (range 15) 2884 | -10/Mines | Identified exit to Materials 3148 | -10/Mines | Assembled infested the area 3218 | -10/Mines | Deemed a non-threat by the Exiles lab entrance 3218 | -10/Mines | Discovered new exit (range 5) 3222 | -10/Mines | Identified exit to Exiles 3226 | -10/Mines | Entered Exiles 3275 | -10/Exiles | Met 8R-AWN 3301 | -10/Exiles | Met EX-HEX 3347 | -10/Exiles | Met EX-BIN 3370 | -10/Exiles | Aligned with FarCom system 3371 | -10/Exiles | Given EX-Vault access code 3408 | -10/Exiles | Opened EX-Vault 3423 | -10/Exiles | Found Prototype Energy Gun 3423 | -10/Exiles | Identified AWS/Thermal 3496 | -10/Exiles | Warned to stay clear of 0b10 Research branches 3544 | -10/Exiles | Met EX-DEC 3626 | -10/Exiles | Discovered new exit (range 12) 3645 | -10/Exiles | Left Exiles lab with AWS/Thermal 3645 | -10/Exiles | Entered Mines 3652 | -9/Mines | Received a Rocket Launcher from a helpful Derelict 3719 | -9/Mines | Discovered new exit (range 6) 3940 | -9/Mines | A weapon hastily lodged in a ceiling crevice suddenly fell to the ground 4075 | -9/Mines | Discovered new exit (range 8) 4310 | -9/Mines | Entered Materials 4310 | -8/Materials | Accompanied by 2 allies 4310 | -8/Materials | Evolved 4 slots: Power x1, Propulsion x1, Utility x1, Weapon x1 4311 | -8/Materials | Loaded intel: 19 interactive machine locations 4312 | -8/Materials | Loaded intel: 12 terminal locations 4315 | -8/Materials | Led the pair of lost Derelicts to an unsafe place 4700 | -8/Materials | Build established: Scavenger-Skirmisher 5935 | -8/Materials | Discovered new exit (range 10) 6021 | -8/Materials | Entered Factory 6021 | -7/Factory | Evolved 2 slots: Propulsion x1, Utility x1 6054 | -7/Factory | Discovered new exit (range 8) 6309 | -7/Factory | Build established: Scavenger-Tank 7828 | -7/Factory | Garrison activated, responded to threat 7898 | -7/Factory | Entered Lower Caves 7920 | -7/Lower Caves | Lost 4 parts (1p2n1u) 8172 | -7/Lower Caves | Build established: Scavenger-Mutant 8538 | -7/Lower Caves | Spotted B-75 Beast 8842 | -7/Lower Caves | Learned Factory emergency access door positions 8904 | -7/Lower Caves | Discovered new exit (range 5) 8944 | -7/Lower Caves | Encountered a Warlord checkpoint 9085 | -7/Lower Caves | A Derelict revealed a hidden shortcut to a safe place 9098 | -7/Lower Caves | Entered Zion 9110 | -6/Zion | Attacked by Zionites 9220 | -6/Zion | Discovered new exit (range 10) 9227 | -6/Zion | Build established: Scavenger-Tank 9383 | -6/Zion | Spotted 38-JF5(B) 9383 | -6/Zion | Spotted MI-D5R(B) 9412 | -6/Zion | Destroyed 38-JF5(B) 9415 | -6/Zion | Destroyed MI-D5R(B) 9446 | -6/Zion | Lost 8 parts (1p2n3u2w) 9655 | -6/Zion | Core integrity fell below 50% 9664 | -6/Zion | Core integrity fell below 20% 9670 | -6/Zion | Destroyed by ST-NK7(g) with Beamcaster Last Messages --------------- Acquired 7 matter. VG-JQB(z) heat damages core (-2). VG-JQB(z) overheating. VG-JQB(z) heat spikes uncontrollably. VG-JQB(z) overheating. Mak. Leg destroyed. Hvy. Particle Gun destroyed. VG-JQB(z) heat damages core (-2). VG-JQB(z) overheating. VG-JQB(z) heat damages Broken Mak. Laser. VG-JQB(z) overheating. Critical hit (Burn: +37). VG-JQB(z) heat damages Mak. Hammer. VG-JQB(z) overheating. VG-JQB(z) heat spikes uncontrollably. VG-JQB(z) overheating. VG-JQB(z) heat damages core (-3). VG-JQB(z) overheating. Acquired Mak. Axe. VG-JQB(z) overheating. Map ----- +----------------------------------------------------+ | ?????????????????????????????????????????????????? | | ?????????????????????????????????????????????????? | | ?????????????????????????????????????????????????? | | ?????????????????????????????????????????????????? | | ?????????????????????????????????????????????????? | | ?????????????????????????????????????????????????? | | ?????????????????????????????????????????????????? | | ?????????????????????????????????????????????????? | | ?????????????????????????????????????????????????? | | ?????????????????????????????????????????????????? | | ?????????????????????????????????????????????????? | | ???????????????????????""????????????????????????? | | ???????????????????????""????????????????????????? | | ??????????????????????? ????????????????????????? | | ??????????????????????? ????????????????????????? | | ???????????????????????" "???????????????????????? | | ????????????????????"""" "???????????????????????? | | ???????????????????##""" "#?????????????????????## | | ??????????????????"""""" ""#????????????????????# | | ????????????????"""""" ""#????????????????????#" | | ???????????? """""""% ""#??#####?????????????#" | | ??????????? """"""[ "#?## ############??#" | | ???????????? =%* "#?#" [ """""""##?#" | | ???????????? $g "#### [ ! "" "="#### | | ?????????????? " =%""# ] !%""#"# | | ???????????????" "" @/= ! ! | | ???????????????" """ zzzz! % | | ???????????????? ""#" %% # !=% ##### | | ???????????????? """""" ###=!! " " " #???? | | ????????????????? ""####?# """"""#???? | | ???????????????? """????# "############???? | | ???????????????? """????#####??????????????? | | ???????????????" """??????????????????????## | | ???????????????? """ "??????????????????????# | | ??????????????? """"" ?????????????????????????# | | ?????????????? ?????"??????????????????????????##? | | ?????????????????????????????????????????????????? | | ?????????????????????????????????????????????????? | | ?????????????????????????????????????????????????? | | ?????????????????????????????????????????????????? | | ?????????????????????????????????????????????????? | | ?????????????????????????????????????????????????? | | ?????????????????????????????????????????????????? | | ?????????????????????????????????????????????????? | | ?????????????????????????????????????????????????? | | ?????????????????????????????????????????????????? | | ?????????????????????????????????????????????????? | | ?????????????????????????????????????????????????? | | ?????????????????????????????????????????????????? | | ?????????????????????????????????????????????????? | +----------------------------------------------------+ Best States ------------- Heat Dissipation 55 Energy Generation 25 Energy Capacity 700 Matter Stores 300 Matter Capacity 300 Sight Range 16 Terrain Scan Density 10 Armor Coverage 150 Resistance: TH 10 Evasion (%) 40 Recoil Reduction 4 Item Schematics ----------------- None Robot Schematics ------------------ None Fabricated ------------ Nothing Alien Tech Used ----------------- None Achievements -------------- None Challenges ------------ None Game ------ Seed AdvancedZhirovLance Manual? 0 Play Time 01:13:39 Cumulative 15.4 hours Start 2023.12.16 @ 09:45:41 End 2023.12.17 @ 10:34:33 Sessions 3 Manual Loads 0 Difficulty Rogue Special Mode None Game No. 19 Rogue 19 Adventurer 0 Explorer 0 Win Type - Total 0 Types 0/0/0/0/0/0/0/0/0 Lore% 15 Gallery% 13 Achievement% 12 Wizard Run 0 Options --------- ASCII 0 Keyboard 0 Movement Mouse Keybinds 0 Fullscreen 1 Font 18/SmallcapsGlow Map View 76x50 Tactical HUD 0 Map Filters NONE Filters NONE Steam 1 RUN: 24cb1539-1cbd-4854-92a5-a25f72715dc5